[Event "Titled Tuesday Blitz August 1 Early 2023"]
[White "Gaal, Zsoka"]
[Black "Pastar, Slaven"]
[WhiteFideId "777765"]
[BlackFideId "14402718"]
[WhiteElo "2485"]
[BlackElo "2569"]
[Result "0-1"]
[Round "9"]
[TimeControl "180+1"]
[Date "2023.08.01"]
[WhiteClock "0:00:00"]
[BlackClock "0:00:06"]
[Board "72"]

1. Nf3 {[%clk 0:03:00]}  b6 {[%clk 0:03:00]} 2. g3 {[%clk 0:02:59]}  Bb7 {[%clk 0:03:01]} 3. Bg2 {[%clk 0:03:00]}  g6 {[%clk 0:03:01]} 4. O-O {[%clk 0:02:59]}  Bg7 {[%clk 0:03:02]} 5. d4 {[%clk 0:03:00]}  Nf6 {[%clk 0:03:03]} 6. c4 {[%clk 0:03:00]}  O-O {[%clk 0:03:02]} 7. d5 {[%clk 0:03:01]}  c6 {[%clk 0:03:00]} 8. Nc3 {[%clk 0:03:00]}  cxd5 {[%clk 0:02:58]} 9. cxd5 {[%clk 0:03:01]}  Na6 {[%clk 0:02:58]} 10. e4 {[%clk 0:03:01]}  Nc5 {[%clk 0:02:57]} 11. e5 {[%clk 0:02:59]}  Nfe4 {[%clk 0:02:53]} 12. Nxe4 {[%clk 0:02:55]}  Nxe4 {[%clk 0:02:54]} 13. Re1 {[%clk 0:02:54]}  Nc5 {[%clk 0:02:51]} 14. b4 {[%clk 0:02:46]}  Na6 {[%clk 0:02:50]} 15. Qb3 {[%clk 0:02:46]}  Nc7 {[%clk 0:02:43]} 16. Nd4 {[%clk 0:02:30]}  d6 {[%clk 0:02:42]} 17. exd6 {[%clk 0:02:24]}  Qxd6 {[%clk 0:02:37]} 18. Bf4 {[%clk 0:02:23]}  Qd7 {[%clk 0:01:29]} 19. d6 {[%clk 0:02:11]}  Bxg2 {[%clk 0:01:28]} 20. Kxg2 {[%clk 0:01:17]}  Bxd4 {[%clk 0:01:26]} 21. Rad1 {[%clk 0:01:13]}  Ne6 {[%clk 0:01:06]} 22. Rxe6 {[%clk 0:01:12]}  Qxe6 {[%clk 0:00:44]} 23. Qxe6 {[%clk 0:01:10]}  fxe6 {[%clk 0:00:44]} 24. Rxd4 {[%clk 0:01:08]}  exd6 {[%clk 0:00:40]} 25. Rxd6 {[%clk 0:01:09]}  Rae8 {[%clk 0:00:35]} 26. Be5 {[%clk 0:01:03]}  g5 {[%clk 0:00:33]} 27. f4 {[%clk 0:01:00]}  gxf4 {[%clk 0:00:32]} 28. gxf4 {[%clk 0:01:01]}  Kf7 {[%clk 0:00:31]} 29. Rd7+ {[%clk 0:00:51]}  Re7 {[%clk 0:00:31]} 30. Rd3 {[%clk 0:00:47]}  Rg8+ {[%clk 0:00:24]} 31. Kf2 {[%clk 0:00:47]}  Ree8 {[%clk 0:00:13]} 32. Rd7+ {[%clk 0:00:34]}  Re7 {[%clk 0:00:14]} 33. Rd3 {[%clk 0:00:34]}  Rg4 {[%clk 0:00:14]} 34. Kf3 {[%clk 0:00:27]}  h5 {[%clk 0:00:14]} 35. Ke4 {[%clk 0:00:25]}  Rg2 {[%clk 0:00:13]} 36. Rh3 {[%clk 0:00:17]}  Kg6 {[%clk 0:00:13]} 37. a4 {[%clk 0:00:14]}  Rd7 {[%clk 0:00:13]} 38. Rc3 {[%clk 0:00:10]}  Rxh2 {[%clk 0:00:10]} 39. Rc6 {[%clk 0:00:10]}  Kf7 {[%clk 0:00:09]} 40. a5 {[%clk 0:00:05]}  bxa5 {[%clk 0:00:08]} 41. bxa5 {[%clk 0:00:06]}  Ra2 {[%clk 0:00:07]} 42. a6 {[%clk 0:00:06]}  Ra4+ {[%clk 0:00:07]} 43. Ke3 {[%clk 0:00:06]}  h4 {[%clk 0:00:07]} 44. Bb8 {[%clk 0:00:04]}  h3 {[%clk 0:00:06]} 45. f5 {[%clk 0:00:03]}  Re7 {[%clk 0:00:05]} 46. Kf3 {[%clk 0:00:02]}  Rh4 {[%clk 0:00:05]} 47. Kg3 {[%clk 0:00:01]}  h2 {[%clk 0:00:05]} 48. Kxh4 {[%clk 0:00:02]}  h1=Q+ {[%clk 0:00:06]} 49. Kg5 {[%clk 0:00:00]}  Qxc6 {[%clk 0:00:06]} 0-1


[Site "https://www.chess.com"]

[Event "Titled Tuesday Blitz August 1 Early 2023"]
[White "Fontaine, Quentin"]
[Black "Onufrienko, Vladislav"]
[WhiteFideId "230804"]
[BlackFideId "13804332"]
[WhiteElo "2476"]
[BlackElo "2567"]
[Result "0-1"]
[Round "9"]
[TimeControl "180+1"]
[Date "2023.08.01"]
[WhiteClock "0:00:17"]
[BlackClock "0:00:20"]
[Board "73"]

1. Nf3 {[%clk 0:02:36]}  Nf6 {[%clk 0:03:00]} 2. g3 {[%clk 0:02:35]}  d5 {[%clk 0:03:01]} 3. Bg2 {[%clk 0:02:34]}  Bg4 {[%clk 0:03:01]} 4. h3 {[%clk 0:02:34]}  Bxf3 {[%clk 0:03:00]} 5. exf3 {[%clk 0:02:35]}  e5 {[%clk 0:03:01]} 6. d4 {[%clk 0:02:34]}  exd4 {[%clk 0:03:01]} 7. Qxd4 {[%clk 0:02:34]}  Nc6 {[%clk 0:03:00]} 8. Qa4 {[%clk 0:02:27]}  Be7 {[%clk 0:03:00]} 9. O-O {[%clk 0:02:26]}  O-O {[%clk 0:03:01]} 10. c4 {[%clk 0:02:23]}  dxc4 {[%clk 0:02:35]} 11. Qxc4 {[%clk 0:02:22]}  Qd4 {[%clk 0:02:35]} 12. Qb3 {[%clk 0:02:16]}  Qb6 {[%clk 0:02:28]} 13. Qxb6 {[%clk 0:02:04]}  axb6 {[%clk 0:02:29]} 14. Nc3 {[%clk 0:02:04]}  h6 {[%clk 0:02:23]} 15. f4 {[%clk 0:02:04]}  Bc5 {[%clk 0:02:20]} 16. a3 {[%clk 0:02:01]}  Rfe8 {[%clk 0:02:18]} 17. Nb5 {[%clk 0:01:51]}  Re7 {[%clk 0:02:08]} 18. Rb1 {[%clk 0:01:46]}  Ra5 {[%clk 0:01:57]} 19. Nxc7 {[%clk 0:01:36]}  Rxc7 {[%clk 0:01:55]} 20. b4 {[%clk 0:01:36]}  Ra8 {[%clk 0:01:45]} 21. bxc5 {[%clk 0:01:36]}  bxc5 {[%clk 0:01:46]} 22. Rxb7 {[%clk 0:01:32]}  Rxb7 {[%clk 0:01:41]} 23. Bxc6 {[%clk 0:01:32]}  Rba7 {[%clk 0:01:41]} 24. Bxa8 {[%clk 0:01:32]}  Rxa8 {[%clk 0:01:42]} 25. Bb2 {[%clk 0:01:28]}  Ne4 {[%clk 0:01:32]} 26. Rc1 {[%clk 0:01:23]}  Ra4 {[%clk 0:01:27]} 27. Kg2 {[%clk 0:01:20]}  c4 {[%clk 0:01:26]} 28. Rc2 {[%clk 0:01:15]}  f5 {[%clk 0:00:59]} 29. f3 {[%clk 0:01:07]}  Nc5 {[%clk 0:00:54]} 30. Bc3 {[%clk 0:00:57]}  Nd3 {[%clk 0:00:50]} 31. Bb4 {[%clk 0:00:38]}  Rxb4 {[%clk 0:00:45]} 32. axb4 {[%clk 0:00:27]}  Ne1+ {[%clk 0:00:45]} 33. Kf2 {[%clk 0:00:28]}  Nxc2 {[%clk 0:00:46]} 34. b5 {[%clk 0:00:28]}  Nd4 {[%clk 0:00:41]} 35. b6 {[%clk 0:00:28]}  Nc6 {[%clk 0:00:41]} 36. Ke3 {[%clk 0:00:25]}  Kf7 {[%clk 0:00:41]} 37. g4 {[%clk 0:00:25]}  Ke6 {[%clk 0:00:39]} 38. h4 {[%clk 0:00:24]}  Kd5 {[%clk 0:00:35]} 39. h5 {[%clk 0:00:24]}  Kc5 {[%clk 0:00:32]} 40. b7 {[%clk 0:00:23]}  Kb4 {[%clk 0:00:25]} 41. Kd2 {[%clk 0:00:22]}  Kb3 {[%clk 0:00:20]} 42. Kc1 {[%clk 0:00:22]}  c3 {[%clk 0:00:20]} 43. Kd1 {[%clk 0:00:17]}  Kb2 {[%clk 0:00:20]} 0-1


[Site "https://www.chess.com"]

[Event "Titled Tuesday Blitz August 1 Early 2023"]
[White "Han, Yichen"]
[Black "Ibadov, Dashgyn"]
[WhiteFideId "1054430"]
[BlackFideId "24107514"]
[WhiteElo "2408"]
[BlackElo "2549"]
[Result "0-1"]
[Round "9"]
[TimeControl "180+1"]
[Date "2023.08.01"]
[WhiteClock "0:00:00"]
[BlackClock "0:00:24"]
[Board "77"]

1. e4 {[%clk 0:03:00]}  e6 {[%clk 0:03:00]} 2. d4 {[%clk 0:02:59]}  d5 {[%clk 0:03:01]} 3. Nc3 {[%clk 0:03:00]}  Nf6 {[%clk 0:03:00]} 4. Bg5 {[%clk 0:03:00]}  Be7 {[%clk 0:03:00]} 5. e5 {[%clk 0:03:00]}  Nfd7 {[%clk 0:03:01]} 6. h4 {[%clk 0:03:01]}  h6 {[%clk 0:03:00]} 7. Bxe7 {[%clk 0:02:59]}  Qxe7 {[%clk 0:03:01]} 8. Qg4 {[%clk 0:02:58]}  O-O {[%clk 0:03:01]} 9. f4 {[%clk 0:02:58]}  c5 {[%clk 0:03:01]} 10. Nf3 {[%clk 0:02:56]}  Nc6 {[%clk 0:03:01]} 11. O-O-O {[%clk 0:02:54]}  a6 {[%clk 0:02:53]} 12. Rh3 {[%clk 0:02:54]}  f5 {[%clk 0:02:46]} 13. exf6 {[%clk 0:02:52]}  Qxf6 {[%clk 0:02:36]} 14. Kb1 {[%clk 0:02:42]}  cxd4 {[%clk 0:02:32]} 15. Ne2 {[%clk 0:02:42]}  Nc5 {[%clk 0:02:29]} 16. Ne5 {[%clk 0:02:19]}  Nxe5 {[%clk 0:02:28]} 17. fxe5 {[%clk 0:02:20]}  Qxe5 {[%clk 0:02:28]} 18. Nxd4 {[%clk 0:02:14]}  Ne4 {[%clk 0:02:27]} 19. Qg6 {[%clk 0:01:44]}  Qxd4 {[%clk 0:02:13]} 20. Bd3 {[%clk 0:01:32]}  Qf6 {[%clk 0:02:07]} 21. Qh5 {[%clk 0:01:25]}  Qf5 {[%clk 0:01:50]} 22. Qe2 {[%clk 0:01:25]}  Bd7 {[%clk 0:01:49]} 23. Rf3 {[%clk 0:01:05]}  Qe5 {[%clk 0:01:04]} 24. Re3 {[%clk 0:00:42]}  Bb5 {[%clk 0:00:59]} 25. c4 {[%clk 0:00:39]}  Bc6 {[%clk 0:00:57]} 26. g4 {[%clk 0:00:32]}  Rf4 {[%clk 0:00:33]} 27. g5 {[%clk 0:00:31]}  hxg5 {[%clk 0:00:32]} 28. hxg5 {[%clk 0:00:32]}  Raf8 {[%clk 0:00:32]} 29. Rh3 {[%clk 0:00:12]}  Rf2 {[%clk 0:00:30]} 30. Bxe4 {[%clk 0:00:00]}  Rxe2 {[%clk 0:00:24]} 0-1


[Site "https://www.chess.com"]

[Event "Titled Tuesday Blitz August 1 Early 2023"]
[White "Golubev, Mikhail"]
[Black "Gardezi, Arsal"]
[WhiteFideId "14100983"]
[BlackFideId "30949521"]
[WhiteElo "2542"]
[BlackElo "2304"]
[Result "1-0"]
[Round "9"]
[TimeControl "180+1"]
[Date "2023.08.01"]
[WhiteClock "0:01:39"]
[BlackClock "0:01:50"]
[Board "79"]

1. e4 {[%clk 0:03:00]}  e6 {[%clk 0:02:44]} 2. d4 {[%clk 0:02:58]}  c5 {[%clk 0:02:44]} 3. Nf3 {[%clk 0:02:57]}  cxd4 {[%clk 0:02:44]} 4. Nxd4 {[%clk 0:02:57]}  Nc6 {[%clk 0:02:43]} 5. Nc3 {[%clk 0:02:56]}  Nf6 {[%clk 0:02:39]} 6. Ndb5 {[%clk 0:02:54]}  Bc5 {[%clk 0:02:34]} 7. Nd6+ {[%clk 0:02:45]}  Ke7 {[%clk 0:02:29]} 8. Bf4 {[%clk 0:02:40]}  Qa5 {[%clk 0:02:06]} 9. Qd2 {[%clk 0:02:15]}  e5 {[%clk 0:01:53]} 10. Nc4 {[%clk 0:01:46]}  Qc7 {[%clk 0:01:52]} 11. Bg5 {[%clk 0:01:43]}  a6 {[%clk 0:01:50]} 12. Nd5+ {[%clk 0:01:39]} 1-0


[Site "https://www.chess.com"]

[Event "Titled Tuesday Blitz August 1 Early 2023"]
[White "Thecourseoisildur"]
[Black "Daniel_Salinas"]
[WhiteElo "2540"]
[BlackElo "2285"]
[Result "1-0"]
[Round "9"]
[TimeControl "180+1"]
[Date "2023.08.01"]
[WhiteClock "0:00:03"]
[BlackClock "0:00:03"]
[Board "80"]

1. e4 {[%clk 0:03:00]}  c6 {[%clk 0:03:00]} 2. d4 {[%clk 0:02:58]}  d5 {[%clk 0:03:00]} 3. e5 {[%clk 0:02:58]}  c5 {[%clk 0:03:01]} 4. dxc5 {[%clk 0:02:58]}  e6 {[%clk 0:03:02]} 5. Nf3 {[%clk 0:02:57]}  Bxc5 {[%clk 0:02:59]} 6. Bd3 {[%clk 0:02:57]}  Ne7 {[%clk 0:02:54]} 7. a3 {[%clk 0:02:56]}  Ng6 {[%clk 0:02:52]} 8. b4 {[%clk 0:02:55]}  Be7 {[%clk 0:02:48]} 9. O-O {[%clk 0:02:53]}  a5 {[%clk 0:02:44]} 10. b5 {[%clk 0:02:48]}  Nd7 {[%clk 0:02:42]} 11. Bb2 {[%clk 0:02:46]}  O-O {[%clk 0:02:41]} 12. a4 {[%clk 0:02:34]}  b6 {[%clk 0:02:35]} 13. Nbd2 {[%clk 0:02:31]}  Nc5 {[%clk 0:02:30]} 14. Nb3 {[%clk 0:02:27]}  Bb7 {[%clk 0:02:06]} 15. Nbd4 {[%clk 0:02:21]}  Rc8 {[%clk 0:01:58]} 16. g3 {[%clk 0:02:07]}  Qc7 {[%clk 0:01:32]} 17. h4 {[%clk 0:01:54]}  Rfd8 {[%clk 0:00:49]} 18. h5 {[%clk 0:01:42]}  Nf8 {[%clk 0:00:49]} 19. h6 {[%clk 0:01:38]}  f6 {[%clk 0:00:49]} 20. hxg7 {[%clk 0:01:37]}  Kxg7 {[%clk 0:00:47]} 21. Qd2 {[%clk 0:01:29]}  Ng6 {[%clk 0:00:41]} 22. exf6+ {[%clk 0:01:16]}  Bxf6 {[%clk 0:00:38]} 23. Rae1 {[%clk 0:01:16]}  Qf7 {[%clk 0:00:32]} 24. Kg2 {[%clk 0:01:06]}  Ne4 {[%clk 0:00:31]} 25. Qe3 {[%clk 0:00:57]}  e5 {[%clk 0:00:17]} 26. Qh6+ {[%clk 0:00:48]}  Kxh6 {[%clk 0:00:16]} 27. Nf5+ {[%clk 0:00:47]}  Kh5 {[%clk 0:00:15]} 28. Rh1+ {[%clk 0:00:47]}  Nh4+ {[%clk 0:00:16]} 29. N3xh4 {[%clk 0:00:43]}  Bxh4 {[%clk 0:00:15]} 30. Rxh4+ {[%clk 0:00:31]}  Kg6 {[%clk 0:00:14]} 31. g4 {[%clk 0:00:24]}  h5 {[%clk 0:00:10]} 32. Bxe5 {[%clk 0:00:21]}  hxg4 {[%clk 0:00:09]} 33. Bxe4 {[%clk 0:00:09]}  dxe4 {[%clk 0:00:08]} 34. Ne3 {[%clk 0:00:05]}  Qf3+ {[%clk 0:00:08]} 35. Kg1 {[%clk 0:00:05]}  Rd7 {[%clk 0:00:06]} 36. Rxg4+ {[%clk 0:00:05]}  Kf7 {[%clk 0:00:04]} 37. Rf4+ {[%clk 0:00:05]}  Ke6 {[%clk 0:00:03]} 38. Rxf3 {[%clk 0:00:05]}  exf3 {[%clk 0:00:04]} 39. Bg3 {[%clk 0:00:04]}  Rg8 {[%clk 0:00:05]} 40. Ng4+ {[%clk 0:00:03]}  Kf7 {[%clk 0:00:01]} 41. Ne5+ {[%clk 0:00:02]}  Ke8 {[%clk 0:00:02]} 42. Nxd7+ {[%clk 0:00:02]}  Kxd7 {[%clk 0:00:03]} 43. Rd1+ {[%clk 0:00:02]}  Ke6 {[%clk 0:00:03]} 44. Rd4 {[%clk 0:00:03]}  Bd5 {[%clk 0:00:03]} 45. Rh4 {[%clk 0:00:02]}  Rg6 {[%clk 0:00:01]} 46. Rh7 {[%clk 0:00:03]}  Kf5 {[%clk 0:00:02]} 47. Rd7 {[%clk 0:00:03]}  Be4 {[%clk 0:00:02]} 48. Rd8 {[%clk 0:00:02]}  Re6 {[%clk 0:00:02]} 49. Rf8+ {[%clk 0:00:02]}  Kg6 {[%clk 0:00:03]} 50. Rb8 {[%clk 0:00:02]}  Kf5 {[%clk 0:00:03]} 51. c4 {[%clk 0:00:02]}  Bd3 {[%clk 0:00:03]} 52. c5 {[%clk 0:00:02]}  bxc5 {[%clk 0:00:03]} 53. b6 {[%clk 0:00:02]}  c4 {[%clk 0:00:03]} 54. b7 {[%clk 0:00:02]}  Be4 {[%clk 0:00:04]} 55. Rf8+ {[%clk 0:00:02]}  Kg6 {[%clk 0:00:04]} 56. b8=Q {[%clk 0:00:02]}  c3 {[%clk 0:00:04]} 57. Rg8+ {[%clk 0:00:03]}  Kf5 {[%clk 0:00:04]} 58. Qf8+ {[%clk 0:00:04]}  Rf6 {[%clk 0:00:05]} 59. Qc5+ {[%clk 0:00:03]}  Ke6 {[%clk 0:00:04]} 60. Re8+ {[%clk 0:00:03]}  Kf7 {[%clk 0:00:04]} 61. Qe7+ {[%clk 0:00:03]}  Kg6 {[%clk 0:00:04]} 62. Rg8+ {[%clk 0:00:03]}  Kf5 {[%clk 0:00:05]} 63. Bh4 {[%clk 0:00:03]}  Rb6 {[%clk 0:00:03]} 64. Rg5+ {[%clk 0:00:03]}  Kf4 {[%clk 0:00:03]} 65. Qe5# {[%clk 0:00:03]} 1-0


[Site "https://www.chess.com"]

[Event "Titled Tuesday Blitz August 1 Early 2023"]
[White "Xu, Yi"]
[Black "Liu, Casper"]
[WhiteFideId "8605564"]
[BlackFideId "1454153"]
[WhiteElo "2722"]
[BlackElo "2493"]
[Result "1-0"]
[Round "9"]
[TimeControl "180+1"]
[Date "2023.08.01"]
[WhiteClock "0:01:14"]
[BlackClock "0:02:19"]
[Board "81"]

1. d4 {[%clk 0:03:00]}  Nf6 {[%clk 0:02:59]} 2. c4 {[%clk 0:03:01]}  g6 {[%clk 0:03:00]} 3. g3 {[%clk 0:02:59]}  Bg7 {[%clk 0:03:01]} 4. Bg2 {[%clk 0:03:00]}  O-O {[%clk 0:03:01]} 5. Nf3 {[%clk 0:02:59]}  c5 {[%clk 0:03:02]} 6. O-O {[%clk 0:02:55]}  cxd4 {[%clk 0:03:02]} 7. Nxd4 {[%clk 0:02:55]}  Nc6 {[%clk 0:03:03]} 8. Nc3 {[%clk 0:02:38]}  Nxd4 {[%clk 0:03:03]} 9. Qxd4 {[%clk 0:02:38]}  d6 {[%clk 0:03:04]} 10. Qd3 {[%clk 0:02:05]}  Qc7 {[%clk 0:02:50]} 11. Bg5 {[%clk 0:01:54]}  Be6 {[%clk 0:02:50]} 12. b3 {[%clk 0:01:52]}  Nd7 {[%clk 0:02:45]} 13. Rac1 {[%clk 0:01:38]}  h6 {[%clk 0:02:39]} 14. Bxe7 {[%clk 0:01:32]}  Rfe8 {[%clk 0:02:31]} 15. Bxd6 {[%clk 0:01:31]}  Qa5 {[%clk 0:02:31]} 16. Nb5 {[%clk 0:01:21]}  Red8 {[%clk 0:02:21]} 17. Bc7 {[%clk 0:01:20]}  Nc5 {[%clk 0:02:21]} 18. Qxd8+ {[%clk 0:01:13]}  Rxd8 {[%clk 0:02:19]} 19. Bxa5 {[%clk 0:01:14]} 1-0


[Site "https://www.chess.com"]

[Event "Titled Tuesday Blitz August 1 Early 2023"]
[White "Csonka, Balazs"]
[Black "Bettalli, Francesco"]
[WhiteFideId "742910"]
[BlackFideId "2816453"]
[WhiteElo "2701"]
[BlackElo "2490"]
[Result "1/2-1/2"]
[Round "9"]
[TimeControl "180+1"]
[Date "2023.08.01"]
[WhiteClock "0:00:04"]
[BlackClock "0:00:32"]
[Board "82"]

1. e4 {[%clk 0:03:00]}  e5 {[%clk 0:01:51]} 2. Nf3 {[%clk 0:02:59]}  Nf6 {[%clk 0:01:52]} 3. d4 {[%clk 0:02:48]}  Nxe4 {[%clk 0:01:51]} 4. Bd3 {[%clk 0:02:47]}  d5 {[%clk 0:01:51]} 5. Nxe5 {[%clk 0:02:46]}  Bd6 {[%clk 0:01:50]} 6. O-O {[%clk 0:02:43]}  O-O {[%clk 0:01:50]} 7. c4 {[%clk 0:02:42]}  c6 {[%clk 0:01:50]} 8. Nc3 {[%clk 0:02:41]}  Nxc3 {[%clk 0:01:50]} 9. bxc3 {[%clk 0:02:42]}  Nd7 {[%clk 0:01:49]} 10. f4 {[%clk 0:02:31]}  f6 {[%clk 0:01:48]} 11. Qh5 {[%clk 0:01:57]}  f5 {[%clk 0:01:45]} 12. Nxd7 {[%clk 0:01:53]}  Bxd7 {[%clk 0:01:43]} 13. a4 {[%clk 0:01:27]}  Qf6 {[%clk 0:01:41]} 14. a5 {[%clk 0:01:15]}  g6 {[%clk 0:01:34]} 15. Qf3 {[%clk 0:01:13]}  dxc4 {[%clk 0:01:31]} 16. Bxc4+ {[%clk 0:01:10]}  Be6 {[%clk 0:01:32]} 17. Bxe6+ {[%clk 0:00:50]}  Qxe6 {[%clk 0:01:33]} 18. a6 {[%clk 0:00:48]}  b6 {[%clk 0:01:27]} 19. Qxc6 {[%clk 0:00:43]}  Rac8 {[%clk 0:01:28]} 20. Qf3 {[%clk 0:00:42]}  Qe4 {[%clk 0:01:25]} 21. Qxe4 {[%clk 0:00:37]}  fxe4 {[%clk 0:01:26]} 22. Ba3 {[%clk 0:00:28]}  Rf6 {[%clk 0:01:14]} 23. Bxd6 {[%clk 0:00:24]}  Rxd6 {[%clk 0:01:15]} 24. Rfe1 {[%clk 0:00:21]}  Rxc3 {[%clk 0:01:05]} 25. Rxe4 {[%clk 0:00:20]}  Rc7 {[%clk 0:01:04]} 26. h4 {[%clk 0:00:16]}  Rcd7 {[%clk 0:01:04]} 27. Ra4 {[%clk 0:00:15]}  b5 {[%clk 0:00:58]} 28. Rb4 {[%clk 0:00:14]}  Rxa6 {[%clk 0:00:58]} 29. Rxb5 {[%clk 0:00:14]}  Rad6 {[%clk 0:00:58]} 30. Rb4 {[%clk 0:00:13]}  Rd5 {[%clk 0:00:59]} 31. Kf2 {[%clk 0:00:12]}  Kg7 {[%clk 0:00:58]} 32. Ke3 {[%clk 0:00:12]}  a5 {[%clk 0:00:58]} 33. Ra4 {[%clk 0:00:12]}  Rb5 {[%clk 0:00:59]} 34. Re5 {[%clk 0:00:10]}  Rb3+ {[%clk 0:00:59]} 35. Ke4 {[%clk 0:00:08]}  Rg3 {[%clk 0:00:59]} 36. Rg5 {[%clk 0:00:05]}  Re7+ {[%clk 0:00:55]} 37. Kd5 {[%clk 0:00:06]}  Rd3 {[%clk 0:00:47]} 38. Kc4 {[%clk 0:00:04]}  Rd1 {[%clk 0:00:40]} 39. Rgxa5 {[%clk 0:00:01]}  Re2 {[%clk 0:00:35]} 40. Kc3 {[%clk 0:00:02]}  Rxg2 {[%clk 0:00:35]} 41. Rg5 {[%clk 0:00:02]}  Rgd2 {[%clk 0:00:33]} 42. h5 {[%clk 0:00:03]}  Rd3+ {[%clk 0:00:33]} 43. Kc2 {[%clk 0:00:03]}  R1d2+ {[%clk 0:00:33]} 44. Kc1 {[%clk 0:00:03]}  Rd1+ {[%clk 0:00:34]} 45. Kc2 {[%clk 0:00:04]}  R3d2+ {[%clk 0:00:31]} 46. Kc3 {[%clk 0:00:04]}  Rd3+ {[%clk 0:00:32]} 47. Kc2 {[%clk 0:00:04]} 1/2-1/2


[Site "https://www.chess.com"]

[Event "Titled Tuesday Blitz August 1 Early 2023"]
[White "Alamzhi21"]
[Black "Mmukka"]
[WhiteElo "2667"]
[BlackElo "2482"]
[Result "0-1"]
[Round "9"]
[TimeControl "180+1"]
[Date "2023.08.01"]
[WhiteClock "0:00:02"]
[BlackClock "0:00:04"]
[Board "84"]

1. d4 {[%clk 0:03:00]}  d5 {[%clk 0:02:59]} 2. c4 {[%clk 0:02:59]}  dxc4 {[%clk 0:02:59]} 3. e3 {[%clk 0:02:59]}  Nf6 {[%clk 0:02:59]} 4. Bxc4 {[%clk 0:02:59]}  e6 {[%clk 0:02:59]} 5. Nf3 {[%clk 0:02:59]}  c5 {[%clk 0:03:00]} 6. O-O {[%clk 0:03:00]}  a6 {[%clk 0:03:00]} 7. a4 {[%clk 0:03:00]}  Nc6 {[%clk 0:02:59]} 8. Nc3 {[%clk 0:03:00]}  Be7 {[%clk 0:02:59]} 9. d5 {[%clk 0:03:01]}  exd5 {[%clk 0:02:58]} 10. Nxd5 {[%clk 0:03:01]}  Nxd5 {[%clk 0:02:59]} 11. Bxd5 {[%clk 0:03:01]}  Nb4 {[%clk 0:02:55]} 12. Bc4 {[%clk 0:02:59]}  O-O {[%clk 0:02:52]} 13. e4 {[%clk 0:02:57]}  Be6 {[%clk 0:02:36]} 14. Bxe6 {[%clk 0:02:48]}  fxe6 {[%clk 0:02:36]} 15. Qb3 {[%clk 0:02:48]}  Qc8 {[%clk 0:02:15]} 16. Ne5 {[%clk 0:02:26]}  Bf6 {[%clk 0:02:01]} 17. Nc4 {[%clk 0:02:17]}  Qc7 {[%clk 0:02:00]} 18. a5 {[%clk 0:02:16]}  Rad8 {[%clk 0:01:57]} 19. Be3 {[%clk 0:02:14]}  Rd3 {[%clk 0:01:52]} 20. Qa4 {[%clk 0:02:13]}  Bd4 {[%clk 0:01:46]} 21. Rad1 {[%clk 0:02:06]}  Rxd1 {[%clk 0:01:41]} 22. Rxd1 {[%clk 0:01:59]}  Bxe3 {[%clk 0:01:41]} 23. Nxe3 {[%clk 0:02:00]}  Qf4 {[%clk 0:01:40]} 24. Rf1 {[%clk 0:01:40]}  Qxe4 {[%clk 0:01:39]} 25. Qd7 {[%clk 0:01:39]}  Nd3 {[%clk 0:01:35]} 26. Nd1 {[%clk 0:01:32]}  Nf4 {[%clk 0:01:22]} 27. f3 {[%clk 0:01:18]}  Qg6 {[%clk 0:01:02]} 28. Ne3 {[%clk 0:01:15]}  Qg5 {[%clk 0:00:51]} 29. Kh1 {[%clk 0:01:07]}  Rd8 {[%clk 0:00:49]} 30. Qxb7 {[%clk 0:01:04]}  h5 {[%clk 0:00:26]} 31. g3 {[%clk 0:00:55]}  Ne2 {[%clk 0:00:20]} 32. Qe4 {[%clk 0:00:51]}  Nd4 {[%clk 0:00:20]} 33. f4 {[%clk 0:00:48]}  Qf6 {[%clk 0:00:18]} 34. Nc4 {[%clk 0:00:44]}  h4 {[%clk 0:00:16]} 35. g4 {[%clk 0:00:41]}  Nb5 {[%clk 0:00:09]} 36. Ne5 {[%clk 0:00:38]}  Rd4 {[%clk 0:00:09]} 37. Qe3 {[%clk 0:00:29]}  Nc7 {[%clk 0:00:08]} 38. f5 {[%clk 0:00:24]}  Nd5 {[%clk 0:00:08]} 39. Qe1 {[%clk 0:00:23]}  exf5 {[%clk 0:00:08]} 40. Rxf5 {[%clk 0:00:22]}  Qe6 {[%clk 0:00:08]} 41. Qxh4 {[%clk 0:00:17]}  Ne3 {[%clk 0:00:05]} 42. Rf8+ {[%clk 0:00:04]}  Kxf8 {[%clk 0:00:04]} 43. Qh8+ {[%clk 0:00:05]}  Ke7 {[%clk 0:00:05]} 44. Qxg7+ {[%clk 0:00:05]}  Kd6 {[%clk 0:00:05]} 45. Qf8+ {[%clk 0:00:04]}  Kxe5 {[%clk 0:00:05]} 46. Qg7+ {[%clk 0:00:03]}  Kd5 {[%clk 0:00:05]} 47. Qg5+ {[%clk 0:00:03]}  Kc4 {[%clk 0:00:04]} 48. Qg7 {[%clk 0:00:02]}  Rd1# {[%clk 0:00:04]} 0-1


[Site "https://www.chess.com"]

[Event "Titled Tuesday Blitz August 1 Early 2023"]
[White "benny_aizenberg"]
[Black "Kuznetsov, Mikhail"]
[BlackFideId "4117190"]
[WhiteElo "2636"]
[BlackElo "2470"]
[Result "1-0"]
[Round "9"]
[TimeControl "180+1"]
[Date "2023.08.01"]
[WhiteClock "0:02:36"]
[BlackClock "0:00:00"]
[Board "88"]

1. g4 {[%clk 0:03:00]}  d5 {[%clk 0:00:12]} 2. g5 {[%clk 0:03:01]}  c5 {[%clk 0:00:11]} 3. h4 {[%clk 0:03:02]}  Nc6 {[%clk 0:00:11]} 4. d3 {[%clk 0:03:02]}  h6 {[%clk 0:00:12]} 5. Bg2 {[%clk 0:03:01]}  hxg5 {[%clk 0:00:11]} 6. hxg5 {[%clk 0:03:01]}  Rxh1 {[%clk 0:00:12]} 7. Bxh1 {[%clk 0:03:02]}  g6 {[%clk 0:00:12]} 8. Nc3 {[%clk 0:03:02]}  e6 {[%clk 0:00:11]} 9. e4 {[%clk 0:03:02]}  d4 {[%clk 0:00:08]} 10. Nce2 {[%clk 0:03:02]}  Be7 {[%clk 0:00:08]} 11. f4 {[%clk 0:03:02]}  e5 {[%clk 0:00:08]} 12. Nf3 {[%clk 0:03:01]}  exf4 {[%clk 0:00:09]} 13. Bxf4 {[%clk 0:03:01]}  Bg4 {[%clk 0:00:09]} 14. Qd2 {[%clk 0:03:00]}  Bxf3 {[%clk 0:00:07]} 15. Bxf3 {[%clk 0:03:01]}  Bd6 {[%clk 0:00:08]} 16. O-O-O {[%clk 0:02:58]}  Bxf4 {[%clk 0:00:06]} 17. Qxf4 {[%clk 0:02:59]}  Qe7 {[%clk 0:00:06]} 18. Rh1 {[%clk 0:02:55]}  Qe5 {[%clk 0:00:06]} 19. Rh7 {[%clk 0:02:49]}  Qxf4+ {[%clk 0:00:06]} 20. Nxf4 {[%clk 0:02:50]}  Ne5 {[%clk 0:00:05]} 21. Bg2 {[%clk 0:02:48]}  Ke7 {[%clk 0:00:03]} 22. Nd5+ {[%clk 0:02:46]}  Kd6 {[%clk 0:00:04]} 23. Rh8 {[%clk 0:02:41]}  Rc8 {[%clk 0:00:03]} 24. Bh3 {[%clk 0:02:39]}  Ne7 {[%clk 0:00:03]} 25. Bxc8 {[%clk 0:02:37]}  Nxd5 {[%clk 0:00:00]} 26. exd5 {[%clk 0:02:36]} 1-0


[Site "https://www.chess.com"]